lending/lending_fUSD_20260306
["ID","MTS","AMOUNT","RATE_DAILY","PERIOD"]
[407763171,1772775039748,-501.02356406,0.00017867,2]
[407763172,1772775039757,-500.0,0.00017867,2]
[407763173,1772775039767,-500.0,0.00017867,2]
[407763174,1772775039776,-500.0,0.00017867,2]
[407763175,1772775039786,-500.0,0.00017867,2]
[407763176,1772775039799,-163.08737228,0.00017867,2]
[407763177,1772775039810,-500.0,0.00017867,2]
[407763178,1772775039819,-488.64879362,0.00017867,2]
[407763179,1772775039828,-226.22,0.0001787,2]
[407763180,1772775039838,-745.65223616,0.00017879,2]
[407763181,1772775039848,-5243.97,0.00017899,2]
[407763182,1772775039857,-500.0,0.000179,2]
[407763183,1772775039869,-500.0,0.000179,2]
[407763184,1772775039879,-500.0,0.000179,2]
[407763185,1772775039888,-500.0,0.000179,2]
[407763186,1772775039898,-160.26681747,0.000179,2]
[407763187,1772775039907,-161.80584655,0.000179,2]
[407763188,1772775039917,-500.0,0.000179,2]
[407763189,1772775039927,-500.0,0.000179,2]
[407763190,1772775039936,-500.0,0.000179,2]
[407763191,1772775039946,-304.73817468,0.000179,2]
[407763192,1772775039956,-500.0,0.000179,2]
[407763193,1772775039965,-500.0,0.000179,2]
[407763194,1772775039977,-500.28271558,0.000179,2]
[407763195,1772775039988,-190.93,0.00017914,2]
[407763196,1772775039998,-2000.0,0.00017916,2]
[407763197,1772775040007,-1037.25309983,0.00017916,2]
[407763198,1772775040016,-2000.0,0.00017916,2]
[407763199,1772775040025,-2000.0,0.00017916,2]
[407763200,1772775040035,-2000.0,0.00017916,2]
[407763201,1772775040045,-953.66024293,0.00017916,2]
[407763202,1772775040054,-2000.0,0.00017916,2]
[407763203,1772775040063,-2000.0,0.00017916,2]
[407763204,1772775040073,-2000.0,0.00017916,2]
[407763205,1772775040082,-186.86529491,0.00017916,2]
[407763206,1772775040091,-2000.0,0.00017916,2]
[407763207,1772775040100,-2000.0,0.00017916,2]
[407763208,1772775040110,-773.2413689,0.00017934,2]
[407763209,1772775040119,-186.30675442,0.00017943,2]
[407763210,1772775040128,-500.0,0.00017943,2]
[407763211,1772775040138,-500.0,0.00017943,2]
[407763212,1772775040148,-500.14291892,0.00017943,2]
[407763213,1772775040157,-500.0,0.00017943,2]
[407763214,1772775040168,-500.0,0.00017943,2]
[407763215,1772775040179,-500.0,0.00017945,2]
[407763216,1772775040189,-801.85129955,0.00017989,2]
[407763217,1772775040198,-228.32,0.00018006,2]
[407763218,1772775040207,-163.62362966,0.00018025,2]
[407763219,1772775040218,-507.04873777,0.00018025,2]
[407763220,1772775040228,-831.51979763,0.00018044,2]
[407763221,1772775040237,-3000.0,0.00018082,7]
[407763222,1772775040247,-862.28603014,0.00018099,2]
[407763223,1772775040256,-1600.0,0.00018128,2]
[407763224,1772775040266,-152.0,0.00018129,3]
[407763225,1772775040276,-226.22,0.0001814,2]
[407763226,1772775040285,-894.19061326,0.00018154,2]
[407763227,1772775040295,-500.0,0.0001816,2]
[407763228,1772775040304,-500.0,0.0001816,2]
[407763229,1772775040314,-500.0,0.0001816,2]
[407763230,1772775040323,-381.37084978,0.0001816,2]
[407763231,1772775040332,-176.67489835,0.0001816,2]
[407763232,1772775040342,-500.0,0.0001816,2]
[407763233,1772775040352,-500.0,0.0001816,2]
[407763234,1772775040364,-162.8862272,0.0001816,2]
[407763235,1772775040373,-500.14941243,0.0001816,2]
[407763236,1772775040383,-500.0,0.0001816,2]
[407763237,1772775040392,-200.0,0.00018165,2]
[407763238,1772775040402,-927.27566595,0.00018209,2]
[407763239,1772775040411,-3224.92687647,0.00018233,2]
[407763240,1772775040421,-2557.41104337,0.00018233,2]
[407763241,1772775040431,-961.58486559,0.00018264,2]
[407763242,1772775040440,-1098.94918086,0.00018292,2]
[407763243,1772775040449,-1000.0,0.00018317,2]
[407763244,1772775040459,-181.08010149,0.00018317,2]
[407763245,1772775040468,-272.62944185,0.00018317,2]
[407763246,1772775040477,-280.31352224,0.00018317,2]
[407763247,1772775040487,-859.51608037,0.00018317,2]
[407763248,1772775040496,-997.16350561,0.00018319,2]
[407763249,1772775040506,-489.87,0.00018348,2]
[407763250,1772775040515,-500.0,0.00018356,7]
[407763251,1772775040525,-600.0,0.00018356,7]
[407763252,1772775040535,-226.16894882,0.00018356,2]
[407763253,1772775040544,-166.66,0.00018358,2]
[407763254,1772775040554,-160.0,0.000184,2]
[407763255,1772775040564,-847.0,0.000184,2]
[407763256,1772775040573,-160.0,0.000184,2]
[407763257,1772775040583,-847.0,0.000184,2]
[407763258,1772775040592,-226.22,0.0001841,2]
[407763259,1772775040602,-1885.22073898,0.00018411,2]
[407763260,1772775040612,-1000.0,0.00018415,2]
[407763261,1772775040621,-1000.0,0.00018415,2]
[407763262,1772775040631,-1000.0,0.00018415,2]
[407763263,1772775040645,-1000.0,0.00018415,2]
[407763264,1772775040655,-1000.0,0.00018415,2]
[407763265,1772775040664,-1000.0,0.00018415,2]
[407763266,1772775040673,-1000.0,0.00018415,2]
[407763267,1772775040684,-1000.0,0.00018415,2]
[407763268,1772775040693,-1000.0,0.00018415,2]
[407763269,1772775040702,-907.30841405,0.00018415,2]
[407763270,1772775040711,-1000.0,0.00018415,2]
[407763271,1772775040721,-1000.0,0.00018415,2]
[407763272,1772775040731,-500.0,0.00018423,2]
[407763273,1772775040740,-500.0,0.00018423,2]
[407763274,1772775040750,-1000.0,0.00018448,2]
[407763275,1772775040763,-1000.0,0.00018448,2]
[407763276,1772775040772,-356.75177425,0.00018448,2]
[407763277,1772775040781,-1000.0,0.00018448,2]
[407763278,1772775040794,-1000.0,0.00018448,2]
[407763279,1772775040803,-720.61669948,0.00018448,2]
[407763280,1772775040812,-301.78790722,0.00018448,2]
[407763281,1772775040822,-1000.0,0.00018448,2]
[407763282,1772775040832,-1000.0,0.00018448,2]
[407763283,1772775040842,-2500.0,0.00018464,2]
[407763284,1772775040851,-2500.0,0.00018464,2]
[407763285,1772775040860,-517.53743445,0.00018464,2]
[407763286,1772775040871,-2500.0,0.00018464,2]
[407763287,1772775040880,-2500.0,0.00018464,2]
[407763288,1772775040890,-2500.0,0.00018464,2]
[407763289,1772775040899,-2500.0,0.00018464,2]
[407763290,1772775040909,-2500.0,0.00018464,2]
[407763291,1772775040918,-2500.0,0.00018464,2]
[407763292,1772775040927,-489.87,0.00018469,2]
[407763293,1772775040937,-1000.0,0.00018491,2]
[407763294,1772775040946,-1000.0,0.00018491,2]
[407763295,1772775040956,-1000.0,0.00018491,2]
[407763296,1772775040966,-1000.0,0.00018491,2]
[407763297,1772775040976,-314.2034565,0.00018576,2]
[407763298,1772775040985,-152.0,0.0001858,4]
[407763299,1772775040995,-489.87,0.0001859,2]
[407763300,1772775041004,-163.62362966,0.0001865,2]
[407763301,1772775041013,-3224.92687647,0.0001865,2]
[407763302,1772775041023,-2557.41104337,0.0001865,2]
[407763303,1772775041035,-3240.0,0.00018678,2]
[407763304,1772775041045,-226.22,0.0001868,2]
[407763305,1772775041055,-1000.0,0.00018708,2]
[407763306,1772775041066,-1000.0,0.00018708,2]
[407763307,1772775041075,-1000.0,0.00018708,2]
[407763308,1772775041085,-1000.0,0.00018708,2]
[407763309,1772775041095,-1000.0,0.00018708,2]
[407763310,1772775041104,-771.53352111,0.00018708,2]
[407763311,1772775041114,-489.87,0.00018709,2]
[407763312,1772775041123,-179.0,0.0001872,2]
[407763313,1772775041133,-2803.0,0.0001872,2]
[407763314,1772775041142,-1225.8,0.00018749,2]
[407763315,1772775041152,-160.547941,0.0001876,7]
[407763316,1772775041161,-314.2034565,0.0001876,2]
[407763317,1772775041171,-165.75564834,0.000188,2]
[407763318,1772775041180,-190.93,0.0001881,2]
[407763319,1772775041189,-1098.94918086,0.00018828,2]
[407763320,1772775041200,-489.87,0.00018829,2]
[407763321,1772775041210,-1225.8,0.00018863,2]
[407763322,1772775041220,-1000.0,0.00018865,2]
[407763323,1772775041230,-187.78006525,0.00018865,2]
[407763324,1772775041239,-282.71673119,0.00018865,2]
[407763325,1772775041249,-172.74325605,0.00018886,2]
[407763326,1772775041258,-160.0,0.00018886,2]
[407763327,1772775041268,-166.66,0.00018926,2]
[407763328,1772775041277,-314.2034565,0.00018944,2]
[407763329,1772775041287,-489.87,0.00018949,2]
[407763330,1772775041296,-226.22,0.0001895,2]
[407763331,1772775041305,-1500.0,0.00018963,2]
[407763332,1772775041315,-1500.0,0.00018963,2]
[407763333,1772775041324,-1500.0,0.00018963,2]
[407763334,1772775041334,-1500.0,0.00018963,2]
[407763335,1772775041343,-1500.0,0.00018963,2]
[407763336,1772775041352,-1500.0,0.00018963,2]
[407763337,1772775041362,-1500.0,0.00018963,2]
[407763338,1772775041372,-1500.0,0.00018963,2]
[407763339,1772775041381,-1500.0,0.00018963,2]
[407763340,1772775041390,-1500.0,0.00018963,2]
[407763341,1772775041399,-1500.0,0.00018963,2]
[407763342,1772775041408,-1000.0,0.00018971,2]
[407763343,1772775041417,-1000.0,0.00018971,2]
[407763344,1772775041427,-1225.8,0.00018976,2]
[407763345,1772775041436,-250.0,0.00018996,2]
[407763346,1772775041445,-1500.0,0.00018996,2]
[407763347,1772775041455,-1042.17553834,0.00018996,2]
[407763348,1772775041464,-1500.0,0.00018996,2]
[407763349,1772775041473,-1500.0,0.00018996,2]
[407763350,1772775041483,-1500.0,0.00018996,2]
[407763351,1772775041492,-349.85488597,0.00018996,2]
[407763352,1772775041501,-14218.10285156,0.00019,2]
[407763353,1772775041510,-184.4003812,0.00019,2]
[407763354,1772775041519,-265.639481,0.00019004,2]
[407763355,1772775041529,-153.26719895,0.00019011,2]
[407763356,1772775041539,-1230.59439442,0.00019012,2]
[407763357,1772775041549,-3000.0,0.00019012,2]
[407763358,1772775041558,-3000.0,0.00019012,2]
[407763359,1772775041568,-3000.0,0.00019012,2]
[407763360,1772775041578,-1005.60768727,0.00019012,2]
[407763361,1772775041589,-3000.0,0.00019012,2]
[407763362,1772775041599,-3000.0,0.00019012,2]
[407763363,1772775041609,-1513.02357711,0.00019012,2]
[407763364,1772775041618,-152.0,0.00019032,5]
[407763365,1772775041627,-1500.0,0.00019039,2]
[407763366,1772775041638,-1500.0,0.00019039,2]
[407763367,1772775041647,-1500.0,0.00019039,2]
[407763368,1772775041657,-1500.0,0.00019039,2]
[407763369,1772775041667,-847.0,0.0001904,2]
[407763370,1772775041678,-160.0,0.0001904,2]
[407763371,1772775041688,-847.0,0.0001904,2]
[407763372,1772775041698,-3224.92687647,0.00019066,2]
[407763373,1772775041793,-2557.41104337,0.00019066,2]
[407763374,1772775041806,-489.91483843,0.0001907,2]
[407763375,1772775041815,-1225.8,0.0001909,2]
[407763376,1772775041825,-226.16894882,0.00019128,2]
[407763377,1772775041835,-500.0,0.00019151,2]
[407763378,1772775041844,-3000.0,0.00019178,7]
[407763379,1772775041853,-150.0,0.00019178,2]
[407763380,1772775041862,-2000.0,0.000192,2]
[407763381,1772775041874,-1225.8,0.00019204,2]
[407763382,1772775041883,-226.22,0.0001922,2]
[407763383,1772775041892,-1500.0,0.00019256,2]
[407763384,1772775041902,-159.03803007,0.00019256,2]
[407763385,1772775041912,-1500.0,0.00019256,2]
[407763386,1772775041920,-1500.0,0.00019256,2]
[407763387,1772775041933,-1500.0,0.00019256,2]
[407763388,1772775041942,-163.62362966,0.00019275,2]
[407763389,1772775041951,-1000.0,0.00019294,2]
[407763390,1772775041960,-1225.8,0.00019318,2]
[407763391,1772775041969,-160.0,0.0001936,2]
[407763392,1772775041979,-160.0,0.0001936,2]
[407763393,1772775041987,-847.0,0.0001936,2]
[407763394,1772775041997,-188.0,0.0001936,2]
[407763395,1772775042006,-1098.94918086,0.00019364,2]
[407763396,1772775042015,-1000.0,0.00019413,2]
[407763397,1772775042024,-194.72792766,0.00019413,2]
[407763398,1772775042033,-293.17725025,0.00019413,2]
[407763399,1772775042042,-1225.8,0.00019431,2]
[407763400,1772775042051,-168.0,0.00019438,2]
[407763401,1772775042060,-500.0,0.00019452,7]
[407763402,1772775042069,-600.0,0.00019452,7]
[407763403,1772775042078,-242.0,0.00019477,2]
[407763404,1772775042088,-3224.92687647,0.00019483,2]
[407763405,1772775042097,-2557.41104337,0.00019483,2]
[407763406,1772775042106,-152.0,0.00019484,6]
[407763407,1772775042116,-226.22,0.0001949,2]
[407763408,1772775042125,-200.0,0.0001949,2]
[407763409,1772775042134,-166.66,0.00019495,2]
[407763410,1772775042144,-200.0,0.00019498,2]
[407763411,1772775042153,-200.0,0.00019498,2]
[407763412,1772775042162,-2000.0,0.00019511,2]
[407763413,1772775042171,-2000.0,0.00019511,2]
[407763414,1772775042183,-2000.0,0.00019511,2]
[407763415,1772775042192,-2000.0,0.00019511,2]
[407763416,1772775042201,-668.33306384,0.00019511,2]
[407763417,1772775042210,-1879.21598663,0.00019511,2]
[407763418,1772775042220,-2000.0,0.00019511,2]
[407763419,1772775042230,-1509.77685935,0.00019511,2]
[407763420,1772775042240,-2000.0,0.00019511,2]
[407763421,1772775042251,-2000.0,0.00019511,2]
[407763422,1772775042261,-1751.18042368,0.00019511,2]
[407763423,1772775042270,-1500.0,0.00019519,2]
[407763424,1772775042279,-1500.0,0.00019519,2]
[407763425,1772775042289,-2000.0,0.00019544,2]
[407763426,1772775042298,-1620.91529332,0.00019544,2]
[407763427,1772775042307,-1034.85556494,0.00019544,2]
[407763428,1772775042316,-2000.0,0.00019544,2]
[407763429,1772775042325,-1225.8,0.00019545,2]
[407763430,1772775042334,-2634.47331644,0.0001956,2]
[407763431,1772775042343,-2650.12002719,0.0001956,2]
[407763432,1772775042352,-3500.0,0.0001956,2]
[407763433,1772775042361,-1147.66191186,0.0001956,2]
[407763434,1772775042370,-3500.0,0.0001956,2]
[407763435,1772775042379,-1000.0,0.00019568,2]
[407763436,1772775042387,-1418.00172438,0.00019587,2]
[407763437,1772775042396,-2000.0,0.00019587,2]
[407763438,1772775042407,-2000.0,0.00019587,2]
[407763439,1772775042415,-2000.0,0.00019587,2]
[407763440,1772775042427,-168.0,0.00019599,2]
[407763441,1772775042436,-933.71713623,0.000196,2]
[407763442,1772775042445,-1225.8,0.00019659,2]
[407763443,1772775042455,-12635.48,0.0001967,2]
[407763444,1772775042465,-190.93,0.00019706,2]
[407763445,1772775042474,-250.0,0.00019726,2]
[407763446,1772775042483,-602.14594661,0.0001973,2]
[407763447,1772775042492,-226.22,0.0001976,2]
[407763448,1772775042502,-1225.8,0.00019773,2]
[407763449,1772775042511,-4732.9702,0.000198,2]
[407763450,1772775042520,-153.26719895,0.00019804,2]
[407763451,1772775042529,-1406.44011951,0.00019804,2]
[407763452,1772775042538,-1668.38028068,0.00019804,2]
[407763453,1772775042547,-2000.0,0.00019804,2]
[407763454,1772775042558,-2000.0,0.00019804,2]
[407763455,1772775042567,-6828.85633504,0.0001981,2]
[407763456,1772775042576,-500.0,0.0001984,2]
[407763457,1772775042585,-168.0,0.00019842,2]
[407763458,1772775042595,-1000.0,0.00019842,2]
[407763459,1772775042605,-1225.8,0.00019886,2]
[407763460,1772775042614,-500.0,0.000199,2]
[407763461,1772775042623,-500.0,0.000199,2]
[407763463,1772775042632,-500.0,0.000199,2]
[407763464,1772775042642,-500.0,0.000199,2]
[407763465,1772775042651,-500.0,0.000199,2]
[407763466,1772775042660,-500.0,0.000199,2]
[407763467,1772775042669,-500.0,0.000199,2]
[407763468,1772775042680,-500.0,0.000199,2]
[407763469,1772775042689,-500.0,0.000199,2]
[407763470,1772775042698,-500.0,0.000199,2]
[407763471,1772775042708,-500.0,0.000199,2]
[407763472,1772775042717,-500.0,0.000199,2]
[407763473,1772775042728,-500.0,0.000199,2]
[407763474,1772775042737,-500.0,0.000199,2]
[407763475,1772775042746,-500.0,0.000199,2]
[407763476,1772775042755,-500.0,0.000199,2]
[407763477,1772775042764,-500.0,0.000199,2]
[407763478,1772775042775,-500.0,0.000199,2]
[407763479,1772775042784,-500.0,0.000199,2]
[407763480,1772775042797,-500.0,0.000199,2]
[407763481,1772775042806,-500.0,0.000199,2]
[407763482,1772775042815,-500.0,0.000199,2]
[407763483,1772775042825,-500.0,0.000199,2]
[407763484,1772775042835,-500.0,0.000199,2]
[407763485,1772775042844,-500.0,0.000199,2]
[407763486,1772775042854,-500.0,0.000199,2]
[407763487,1772775042863,-500.0,0.000199,2]
[407763488,1772775042874,-500.0,0.000199,2]
[407763489,1772775042883,-500.0,0.000199,2]
[407763490,1772775042892,-500.0,0.000199,2]
[407763491,1772775042902,-500.0,0.000199,2]
[407763492,1772775042911,-500.0,0.000199,2]
[407763493,1772775042920,-500.0,0.000199,2]
[407763494,1772775042931,-500.0,0.000199,2]
[407763495,1772775042941,-500.0,0.000199,2]
[407763496,1772775042949,-500.0,0.000199,2]
[407763497,1772775042959,-500.0,0.000199,2]
[407763498,1772775042967,-191.36410237,0.000199,2]
[407763499,1772775042976,-163.62362966,0.000199,2]
[407763500,1772775042985,-507.04873777,0.000199,2]
[407763501,1772775042994,-3224.92687647,0.000199,2]
[407763502,1772775043004,-1098.94918086,0.000199,2]
[407763503,1772775043012,-226.16894882,0.000199,2]
[407763504,1772775043021,-2557.41104337,0.000199,2]
[407763505,1772775043030,-6156.0,0.000199,2]
[407763506,1772775043039,-4926.0,0.000199,2]
[407763507,1772775043048,-152.0,0.00019935,7]
[407763508,1772775043058,-1000.0,0.00019961,2]
[407763509,1772775043066,-201.93286099,0.00019961,2]
[407763510,1772775043075,-304.02480851,0.00019961,2]
[407763511,1772775043084,-701.879034,0.0001997,2]
[407763512,1772775043093,-500.0,0.00019973,2]
[407763513,1772775043102,-500.0,0.00019973,2]
[407763514,1772775043111,-623.52915475,0.00019973,2]
[407763515,1772775043119,-500.0,0.00019973,2]
[407763516,1772775043128,-503.16169822,0.0001998,2]
[407763517,1772775043137,-203.95948602,0.00019985,2]
[407763518,1772775043146,-203.95948602,0.0001999,2]
[407763519,1772775043154,-1532.5460521,0.00019992,2]
[407763520,1772775043164,-523210.4659926,0.00019995,2]
[407763521,1772775043172,-12805.4314636,0.00019995,2]
[407763522,1772775043182,-151.0,0.00019997,2]
[407763523,1772775043191,-300.0,0.00019999,2]
[407763524,1772775043200,-300.0,0.00019999,2]
[407763525,1772775043209,-264.33186095,0.00019999,2]
[407763526,1772775043218,-977126.99805578,0.0002,2]
[407763527,1772775043227,-1449572.28928164,0.0002,2]
[407763528,1772775044441,-182464.57862785,0.0002,2]
[407763530,1772775044455,-6333540.76649023,0.0002,2]
[407763532,1772775044478,-1000.0,0.00019979,2]
[407763533,1772775044488,-2245.4683156,0.0002,2]
[407763535,1772775044990,-500.0,0.00016136,2]
[407763536,1772775045000,-500.0,0.00016136,2]
[407763537,1772775045009,-500.0,0.00016136,2]
[407763538,1772775045018,-500.0,0.00016136,2]
[407763539,1772775045028,-500.0,0.00016136,2]
[407763540,1772775045037,-500.0,0.00016136,2]
[407763541,1772775045047,-500.0,0.00016136,2]
[407763542,1772775045057,-267.01375982,0.00016136,2]
[407763543,1772775045067,-163.63128606,0.00016136,2]
[407763544,1772775045076,-500.0,0.00016136,2]
[407763545,1772775045085,-10.59454783,0.00016136,2]
[407763546,1772775045097,-489.40545217,0.00016136,2]
[407763547,1772775045106,-68.55455809,0.00019609,2]
[407763548,1772775045117,-2933.58524127,0.00019609,2]
[407763549,1772775045142,-499.86020064,0.00019609,2]
[407763550,1772775045151,-62.99636397,0.00019979,2]
[407763551,1772775045232,-508.73610724,0.00019979,2]
[407763552,1772775045245,-428.26752879,0.00019979,2]
[407763553,1772775045254,-1000.0,0.00019979,2]
[407763554,1772775045263,-1000.0,0.00019979,2]
[407763555,1772775045272,-1000.0,0.00019979,2]
[407763556,1772775045281,-1000.0,0.00019979,2]
[407763557,1772775045290,-266.452,0.00019979,2]
[407763558,1772775045300,-2584.06838602,0.0002,2]
[407763559,1772775045311,-4416.78330002,0.0002,2]
[407763560,1772775045328,-260002.40750082,0.0002,2]
[407763571,1772775045942,-970.51580393,0.0002,2]
[407763572,1772775045957,-248224.70212637,0.0002,2]
[407763574,1772775045968,-50595.73972171,0.0002,2]
[407763576,1772775045979,-521.50544742,0.0002,2]
[407763577,1772775055831,-6610.74094678,0.00016137,2]
[407763578,1772775055848,-10000.01,0.00016137,2]
[407763579,1772775055882,-10000.01,0.00016137,2]
[407763580,1772775056117,-10000.01,0.00016137,2]
[407763581,1772775056306,-10000.01,0.00016137,2]
[407763582,1772775056476,-10000.01,0.00016137,2]
[407763583,1772775056672,-10000.01,0.00016137,2]
[407763584,1772775056857,-10000.01,0.00016137,2]
[407763585,1772775057071,-10000.01,0.00016137,2]
[407763586,1772775060845,-10000.01,0.00016137,2]
[407763587,1772775119992,10000.01,0.00016037,2]
[407763588,1772775120018,10000.01,0.00016037,2]
[407763589,1772775120045,1620.5303,0.00016037,2]
[407763590,1772775122643,250.0,0.00015,2]
[407763591,1772775134329,8129.4797,0.00016037,2]
[407763592,1772775134353,10000.01,0.00016037,2]
[407763593,1772775134377,10000.01,0.00016037,2]
[407763594,1772775134400,10000.01,0.00016037,2]
[407763595,1772775134423,10000.01,0.00016037,2]
[407763596,1772775134447,10000.01,0.00016037,2]
[407763597,1772775134470,10000.01,0.00016037,2]
[407763598,1772775134493,10000.01,0.00016037,2]
[407763599,1772775136134,500.0,0.00012,2]
[407763600,1772775136182,655.28,0.00012,2]
[407763601,1772775136216,671.78014092,0.00012,2]
[407763602,1772775136257,417.59742261,0.00012,2]
[407763603,1772775136321,226.32936989,0.00012,2]
[407763604,1772775136383,381.67802254,0.00011056,2]
[407763605,1772775136404,118.32197746,0.00011056,2]
[407763606,1772775136505,459.02007862,0.00012,2]
[407763607,1772775142987,197.58575887,0.00012,2]
[407763608,1772775143571,507.0,0.00014,2]
[407763609,1772775159218,-196.27809889,0.00016036,2]
[407763610,1772775159249,-298.5029572,0.00016036,2]
[407763611,1772775159279,-500.0,0.00016036,2]
[407763612,1772775159308,-300.3059768,0.00016036,2]
[407763613,1772775162270,-500.0,0.00016036,2]
[407763614,1772775165348,-407.0701429,0.00016036,2]
[407763615,1772775174529,-5595.69564842,0.00016037,2]
[407763616,1772775177491,-10000.01,0.00016037,2]
[407763617,1772775207663,1049.43935285,0.00015937,2]
[407763618,1772775270110,247.87566628,0.00015936,2]
[407763619,1772775289634,156.99274013,0.00015937,2]
[407763620,1772775309066,2731.25952081,0.00015937,2]
[407763621,1772775375504,188.47412405,0.00015937,2]
[407763623,1772775448771,166.989957,0.00015877,7]
[407763624,1772775458584,157.06177005,0.00015937,2]
[407763625,1772775487461,2500.0,0.00015937,2]
[407763626,1772775512108,507.04873779,0.00015937,2]
[407763627,1772775570288,2294.86813104,0.00015937,2]
[407763628,1772775570313,930.05874546,0.00015937,2]
[407763630,1772775601410,1036.00398885,0.00015937,2]
[407763631,1772775626768,200.0,0.00015672,2]
[407763632,1772775657258,2500.0,0.00015937,2]
[407763633,1772775665022,166.66,0.00014888,2]
[407763634,1772775665235,166.66,0.00015201,2]
[407763635,1772775665637,166.66,0.00015515,2]
[407763636,1772775666186,166.66,0.00015828,2]
[407763637,1772775685092,163.62362972,0.00015937,2]
[407763638,1772775702551,2458.13356872,0.00015937,2]
[407763640,1772775798133,2500.0,0.00015937,2]
[407763641,1772775853518,157.06177,0.00015937,2]
[407763642,1772775915960,906.5034902,0.00015937,2]
[407763643,1772775922487,338.03249186,0.00015937,2]
[407763644,1772775961496,584.6763,0.00015937,2]
[407763645,1772776082477,2902.43418885,0.00015936,2]
[407763646,1772776091196,2212.32021183,0.00015937,2]
[407763648,1772776149235,398.98154726,0.00015937,2]
[407763649,1772776149261,4601.01845274,0.00015937,2]
[407763650,1772776155523,5398.99154726,0.00015936,2]
[407763651,1772776155545,10000.01,0.00015936,2]
[407763652,1772776155567,10000.01,0.00015936,2]
[407763653,1772776155588,10000.01,0.00015936,2]
[407763654,1772776155610,10000.01,0.00015936,2]
[407763655,1772776155635,10000.01,0.00015936,2]
[407763656,1772776155657,10000.01,0.00015936,2]
[407763657,1772776155679,10000.01,0.00015936,2]
[407763658,1772776155699,10000.01,0.00015936,2]
[407763659,1772776155721,10000.01,0.00015936,2]
[407763660,1772776159655,-1500.0,0.00015414,2]
[407763661,1772776162701,-2383.552178,0.00015936,2]
[407763662,1772776163374,-9045.56006725,0.00015936,2]
[407763663,1772776163400,-10000.01,0.00015936,2]
[407763664,1772776163422,-10000.01,0.00015936,2]
[407763665,1772776163462,-10000.01,0.00015936,2]
[407763666,1772776163572,-10000.01,0.00015936,2]
[407763667,1772776163726,-10000.01,0.00015936,2]
[407763668,1772776169311,503.0,0.00014,2]
[407763669,1772776187615,2148.67,0.00012638,2]
[407763670,1772776200185,508.0,0.00014,2]
[407763671,1772776201177,300.0,0.00015935,2]
[407763672,1772776201232,300.0,0.00015935,2]
[407763673,1772776201343,1200.0,0.00015935,2]
[407763685,1772776231836,-3509.41623642,0.00015936,2]
[407763686,1772776231896,-15912.32677107,0.00015936,2]
[407763687,1772776231907,-6200.0,0.00016,5]
[407763688,1772776231919,-774.15007218,0.00016009,2]
[407763689,1772776231941,-550.0,0.00016026,2]
[407763690,1772776231953,-320.06063573,0.00016027,2]
[407763691,1772776231965,-500.0,0.00016027,2]
[407763692,1772776231977,-500.0,0.00016027,2]
[407763693,1772776231989,-151.0,0.00016027,2]
[407763694,1772776232001,-500.0,0.00016027,2]
[407763696,1772776232012,-151.0,0.00016027,2]
[407763697,1772776232025,-500.0,0.00016027,2]
[407763698,1772776232037,-151.0,0.00016027,2]
[407763699,1772776232049,-500.0,0.00016027,2]
[407763700,1772776232062,-151.0,0.00016027,2]
[407763702,1772776232073,-282.2001327,0.00016027,2]
[407763703,1772776232085,-151.0,0.00016027,2]